Cogmind - Beta 15 @@@ ROGUE MODE // 2025.05.29 @ 03:20:26 Player: Seikan The Soupcan Result: Destroyed by Y-45 Defender with Heavy Assault Rifle Performance ------------- Evolutions (1) 500 Regions Visited (2) 400 Robots Destroyed (15) 75 Value Destroyed (308) 308 Prototype IDs (0) 0 Alien Tech Used (0) 0 Bonus (0) 0 TOTAL SCORE: 1283 Bonus ------- None Cogmind --------- Core Integrity 0/400 Matter 256/300 Energy 89/100 System Corruption 0% Temperature Cool (10) Movement Treading (160) Location -9/Materials Parts ------- > --- POWER (2) -------- (None) > --- PROPULSION (3) --- Light Treads > --- UTILITY (2) ------ Propulsion Shielding Propulsion Shielding > --- WEAPON (2) ------- Light Assault Rifle Heavy Assault Rifle > --- INVENTORY (5) ---- Large Battery (200) Peak State ------------ > --- POWER ------------ (None) > --- PROPULSION ------- Light Treads > --- UTILITY ---------- Propulsion Shielding Propulsion Shielding > --- WEAPON ----------- Light Assault Rifle Heavy Assault Rifle > --- INVENTORY -------- Large Battery [Rating: 6] Favorites ----------- Power Light Ion Engine Engine Light Ion Engine Propulsion Light Treads Treads Light Treads Hover Unit Hover Unit Utility Tractor Beam Device Tractor Beam Processor Visual Processing Unit Protection Propulsion Shielding Weapon Assault Rifle Ballistic Gun Assault Rifle Special Weapon Plasma Cutter Build | -11 -10 -9 ------- Run | Yrd Mat Mat Slots Evolved 2 | . . 2 Power 1 | . . 1 Propulsion 1 | . . 1 Utility . | . . . Weapon . | . . . Parts Attached 14 | 5 3 6 Power 2 | 1 1 . Engine 2 | 1 1 . Core . | . . . Reactor . | . . . Propulsion 4 | 2 1 1 Treads 3 | 2 . 1 Leg . | . . . Wheel . | . . . Hover 1 | . 1 . Flight . | . . . Utility 4 | 1 1 2 Device 1 | 1 . . Storage . | . . . Processor 1 | . 1 . Hackware . | . . . Protection 2 | . . 2 Artifact . | . . . Weapon 4 | 1 . 3 Energy Gun . | . . . Energy Cannon . | . . . Ballistic Gun 3 | 1 . 2 Ballistic Cannon . | . . . Launcher . | . . . Special Weapon 1 | . . 1 Impact Weapon . | . . . Slashing Weapon . | . . . Piercing Weapon . | . . . Special Melee Weapon . | . . . Unidentified Prototypes . | . . . Parts Lost 8 | . 4 4 Power 2 | . 1 1 Propulsion 3 | . 2 1 Utility 1 | . 1 . Weapon 2 | . . 2 Highest Loss Streak 3 | . 3 3 To Critical Strikes . | . . . Average Backups 1 | . 1 1 Power . | . . . Propulsion . | . . . Utility . | . . 1 Weapon . | . . . Tool/Special . | . . . Unused Backups 1 | . . 1 Power . | . . . Propulsion . | . . . Utility 1 | . . 1 Weapon . | . . . Tool/Special . | . . . Average Slot Usage (%) 56 | . 62 33 Engine 11 | . 12 8 Treads 18 | . 24 . Hover 1 | . . 2 Device 7 | . 9 . Processor 1 | . . 5 Protection 2 | . . 10 Ballistic Gun 11 | . 14 5 Peak Build Rating 6 | 5 5 6 Average Rating 4 | 3 4 3 On Entrance 3 | . 5 5 Naked Turns . | . . . Heaviest Build 6 | 6 6 6 Greatest Support 40 | 40 40 20 Greatest Overweight (x) 1 | . . 1 Average Overweight (x) . | . . . Largest Inventory Capacity 5 | 5 5 5 Average Capacity 5 | 5 5 5 Most Carried 4 | 4 4 3 Average Carried 1 | . 1 1 Final Capacity 5 | 5 5 5 Final Carried 1 | 1 1 1 Class Distribution -------------------- 100% | Mutant Dominant Class ---------------- Mutant | -10/Materials Mutant | -9/Materials Resources | -11 -10 -9 ----------- Run | Yrd Mat Mat Matter Collected 470 | 230 209 31 Remotely 101 | . 101 . Salvage Created 401 | 55 315 31 Parts 24 | 3 16 5 Haulers Intercepted . | . . . Recyclers Shooed . | . . . Parts Field Recycled . | . . . Retrieved Matter . | . . . Parts Self-Destructed . | . . . Prevented . | . . . Kills | -11 -10 -9 ------- Run | Yrd Mat Mat Combat Hostiles Destroyed 8 | . 7 1 Guns 7 | . 6 1 AOE 1 | . 1 . Classes Destroyed 7 | 1 5 1 Worker 2 | . 2 . Builder 1 | . 1 . Tunneler 1 | . . 1 Recycler 1 | 1 . . Watcher 2 | . 2 . Swarmer 3 | . 2 1 Grunt 5 | . 5 . Best Kill Streak 4 | 1 4 2 Combat Bots Only 2 | . 2 1 Max Kills in Single Turn 2 | 1 2 1 Gunslinging . | . . . Exploded 1 | . 1 . Melee . | . . . Uniques/NPCs Destroyed . | . . . Combat | -11 -10 -9 -------- Run | Yrd Mat Mat Hostile Shots Fired 133 | . 65 68 Missed 35 | . 19 16 Hits 98 | . 46 52 Projectile 98 | . 46 52 AOE 1 | . 1 . Critical Strikes 5 | . 4 1 Actively Blocked 1 | . . 1 Damage Taken 1246 | . 596 650 Core 556 | . 149 407 Absorbed by Shields . | . . . Redirected to Shielding 8 | . . 8 Core Remaining (%) 70 | 100 40 . Volleys Fired 78 | 2 62 14 Largest 1 | 1 1 1 Hottest 20 | 20 20 20 Shots Fired 78 | 2 62 14 Gun 77 | 2 62 13 Cannon . | . . . Launcher . | . . . Special 1 | . . 1 Kinetic 77 | 2 62 13 Thermal 1 | . . 1 Explosive . | . . . Electromagnetic . | . . . Robot Hit Streak 9 | 2 9 8 Robot Miss Streak 5 | . 5 1 Penetration Max . | . . . Secondary Targets . | . . . Shots Hit Robots 48 | 2 36 10 Core Hits 25 | 2 18 5 Critical Kills . | . . . Critical Parts Destroyed . | . . . Critical Strikes . | . . . Melee Attacks . | . . . Impact . | . . . Slashing . | . . . Piercing . | . . . Sneak Attacks . | . . . Combat Hostiles . | . . . Follow-up Attacks . | . . . Damage Inflicted 846 | 24 687 135 Guns 580 | 24 439 117 Cannons . | . . . Explosions 248 | . 248 . Melee . | . . . Ramming 18 | . . 18 Kinetic 580 | 24 439 117 Thermal 248 | . 248 . Explosive . | . . . Electromagnetic . | . . . Impact . | . . . Slashing . | . . . Piercing . | . . . Highest Corruption . | . . . Average Corruption . | . . . Corruption Purged . | . . . Corruption Blocked . | . . . Overload Shots . | . . . Overflow Damage 83 | . 83 . Projectiles . | . . . Explosions 83 | . 83 . Melee . | . . . Knockbacks . | . . . Impact . | . . . Kinetic . | . . . Secondary . | . . . Self-Inflicted Damage 9 | . . 9 Shots . | . . . Rammed 3 | . . 3 Targets Rammed 3 | . . 3 Kicked . | . . . Crushed . | . . . Highest Temperature 17 | . 17 1 Average Temperature 9 | . 9 1 Received Heat Transfer 477 | . 324 153 Siege Activations . | . . . Martial Activations . | . . . Shielding Activations . | . . . Robots Disrupted . | . . . Combat Hostiles . | . . . Robots Corrupted . | . . . Combat Hostiles . | . . . Parts Fried . | . . . Impact Corruptions . | . . . Robots Melted . | . . . Combat Hostiles . | . . . Parts Melted . | . . . Heat Transferred 150 | . 150 . Parts Sabotaged . | . . . Parts Stolen . | . . . Parts Stripped . | . . . Power Chain Reactions . | . . . Alert | -11 -10 -9 ------- Run | Yrd Mat Mat Maximum Alert Level . | . . . Low Security (%) 100 | 100 100 100 Level 1 . | . . . Level 2 . | . . . Level 3 . | . . . Level 4 . | . . . Level 5 . | . . . High Security . | . . . Max Security . | . . . Peak Influence 92 | 5 92 30 Initial 18 | . . 18 Average 24 | . 32 6 Influence Increases 311 | 5 271 35 Destroy 0b10 Robot/C 160 | . 140 20 Destroy 0b10 Robot/NC 35 | 5 25 5 Destroy Leader 54 | . 44 10 Disable Machine 45 | . 45 . Destroy Structure 17 | . 17 . Influence Decreases 291 | 5 227 59 Entered New Map 26 | . . 26 Time Decay 217 | 5 187 25 Lost Part 48 | . 40 8 Squads Dispatched 3 | . 1 2 Investigation 2 | . 1 1 Extermination . | . . . Reinforcement 1 | . . 1 Assault . | . . . Garrison . | . . . Intercept . | . . . Searches Triggered . | . . . Construction Impeded 1 | . . 1 Haulers Reinforced . | . . . Active Scanning Responses . | . . . Cargo Convoy Interrupts . | . . . Stealth | -11 -10 -9 --------- Run | Yrd Mat Mat Distress Signals . | . . . Communications Jammed . | . . . Distress Signals . | . . . Times Spotted 21 | . 13 8 Peak Tracking Total 6 | . 3 6 Tactical Retreats . | . . . Traps | -11 -10 -9 ------- Run | Yrd Mat Mat Traps Triggered 3 | . 2 1 Indirectly . | . . . Trap Hack Attempts . | . . . Triggered . | . . . Disarmed . | . . . Reprogrammed . | . . . Reused . | . . . Traps Extracted . | . . . Installed . | . . . Triggered . | . . . Machines | -11 -10 -9 ---------- Run | Yrd Mat Mat Machines Disabled 3 | . 3 . Max in Single Turn 2 | . 2 . Machines Repaired . | . . . Machines Dismantled . | . . . Machines Sabotaged . | . . . Overloaded Fab Kills . | . . . Hacking | -11 -10 -9 --------- Run | Yrd Mat Mat Machines Accessed 2 | . 1 1 Terminals 2 | . 1 1 Fabricators . | . . . Repair Stations . | . . . Recycling Units . | . . . Scanalyzers . | . . . Garrison Access . | . . . Total Hacks 7 | . 3 4 Successful 3 | . 2 1 Failed 4 | . 1 3 Catastrophic 1 | . . 1 Database Lockouts . | . . . Manual . | . . . Terminals 7 | . 3 4 Fabricators . | . . . Repair Stations . | . . . Recycling Units . | . . . Scanalyzers . | . . . Garrison Access . | . . . Terminal Hacks 3 | . 2 1 Record 2 | . 2 . Recall Investigation 1 | . . 1 Fabricator Hacks . | . . . Repair Station Hacks . | . . . Recycling Unit Hacks . | . . . Scanalyzer . | . . . Garrison Access Hacks . | . . . Unauthorized Hacks . | . . . Terminals . | . . . Fabricators . | . . . Repair Stations . | . . . Recycling Units . | . . . Scanalyzers . | . . . Garrison Access . | . . . Data Cores Recovered . | . . . Used . | . . . Hacking Detections 2 | . 1 1 Full Trace Events 2 | . 1 1 Feedback Events . | . . . Feedback Blocked . | . . . Robot Schematics Acquired . | . . . Robots Built . | . . . Authchips . | . . . Time . | . . . Total Robot Build Rating . | . . . Part Schematics Acquired . | . . . Parts Built . | . . . Authchips . | . . . Time . | . . . Total Part Build Rating . | . . . Parts Repaired . | . . . Time . | . . . Parts Recycled . | . . . Recycled Matter . | . . . Retrieved Matter . | . . . Retrieved Components . | . . . Parts Scanalyzed . | . . . Part Schematics Acquired . | . . . Parts Damaged . | . . . Bothacking | -11 -10 -9 ------------ Run | Yrd Mat Mat Used RIF Installer . | . . . Robots Hacked . | . . . Non-combat . | . . . Combat . | . . . Robot Hacks Applied . | . . . Relay Couplers Released . | . . . Fabnet Peak Effective % . | . . . Robots Rewired . | . . . Allies Hacked . | . . . Hacks Repelled . | . . . Allies | -11 -10 -9 -------- Run | Yrd Mat Mat Total Allies . | . . . Largest Group . | . . . Highest-Rated Group . | . . . Highest-Rated Ally . | . . . Total Orders . | . . . Ally Attacks . | . . . Total Damage . | . . . Kills . | . . . Allies Corrupted . | . . . Allies Melted . | . . . Intel | -11 -10 -9 ------- Run | Yrd Mat Mat Active Infowar (turns) 102 | . 26 76 Optics 102 | . 26 76 Robot Analysis Total . | . . . Derelict Logs Recovered . | . . . Drone Launches . | . . . Drone Recoveries . | . . . Exploration | -11 -10 -9 ------------- Run | Yrd Mat Mat Turns Passed 715 | 74 496 145 Spaces Moved 487 | 52 273 162 Core 165 | 21 28 116 Treads 239 | 31 205 3 Legs . | . . . Wheels . | . . . Hover 83 | . 40 43 Flight . | . . . Fastest Speed 50 | 50 50 50 Average Speed 108 | 115 134 63 Slowest Speed 160 | 160 160 160 Overloaded Moves . | . . . Propulsion Burnouts . | . . . Robots Hopped . | . . . Potential Cave-ins . | . . . Cave-ins Triggered . | . . . Exploration Rate (%) 27 | 4 62 15 Regions Visited 2 Branch Regions . Pre-discovered Areas . | . . . Known Exits Taken . | . . . Unknown Exits Taken 2 | 1 1 . Scrap Searched . | . . . Spaces Dug . | . . . Terrain Destroyed 20 | . 20 . Melee . | . . . Projectile . | . . . AOE 20 | . 20 . Terrain Rammed . | . . . Walls Destroyed . | . . . Machines Disabled . | . . . Actions | -11 -10 -9 --------- Run | Yrd Mat Mat Total 596 | 64 340 192 Wait . | . . . Move 485 | 51 272 162 Hop . | . . . Pick Up 15 | 6 3 6 Fast Attach . | . . . Attach 14 | 5 3 6 Detach . | . . . Swap . | . . . Drop 1 | . . 1 Fire 78 | 2 62 14 Melee . | . . . Ram 3 | . . 3 Kick . | . . . Crush . | . . . Escape Stasis . | . . . Rewire . | . . . Trap . | . . . Miscellaneous . | . . . Route ------- -11/Scrapyard -10/Materials (discovered 3 exits: *Mat x2 / [*Min]) -9/Materials (discovered 1 exit: [*Min]) History --------- Turn | Location | Event 23 | -11/Scrapyard | Discovered new exit (range 15) 75 | -11/Scrapyard | Entered Materials 162 | -10/Materials | Discovered new exit (range 9) 312 | -10/Materials | Build established: Mutant 334 | -10/Materials | Discovered new exit (range 5) 508 | -10/Materials | Core integrity fell below 50% 540 | -10/Materials | Lost 3 parts (1p2n) 555 | -10/Materials | Discovered new exit (range 17) 571 | -10/Materials | Entered another Materials area 571 | -9/Materials | Evolved 2 slots: Power x1, Propulsion x1 571 | -9/Materials | Discovered new exit (range 7) 651 | -9/Materials | Lost 3 parts (1n2w) 681 | -9/Materials | Core integrity fell below 50% 695 | -9/Materials | Core integrity fell below 20% 716 | -9/Materials | Destroyed by Y-45 Defender with Heavy Assault Rifle Last Messages --------------- U-05 Engineer lays Concrete. R-06 Scavenger collects Flight Unit. U-05 Engineer lays Concrete. R-06 Scavenger collects Seismic Detector. U-05 Engineer builds a Wall. U-05 Engineer lays Concrete. ALERT: Construction progress impeded, dispatching reinforcements to local area. U-05 Engineer lays Concrete. R-06 Scavenger collects Flight Unit. U-05 Engineer lays Concrete. Acquired 18 matter. U-05 Engineer lays Concrete. U-05 Engineer builds a Wall. Acquired Lgt. Treads. R-06 Scavenger collects Lgt. Assault Rifle. U-05 Engineer builds a Door. Acquired Hvy. Assault Rifle. R-06 Scavenger collects Lgt. Ion Engine. U-05 Engineer lays Concrete. Map ----- +----------------------------------------------------+ | ?????????????????????????????????????????????????? | | ?????????????????????????????????????????????????? | | ?????????????????????????????????????????????????? | | ?????????????????????????????????????????????????? | | ?????????????????????????????????????????????????? | | #######??????????????????????????????????????????? | | # # ?????????????????????????????????????????? | | # ?????????????????????????????????????????? | | < # ?????????????????????????????????????????? | | # ????????????????????????????????????????? | | # # ????????????????????????????????????????? | | ## ## ????????????????????????????????????????? | | ?# #? ????????????????????????????????????????? | | ?# #? ????????????????????????????????????????? | | ?+ ###+####????????????????????????????????????? | | ?# #?????????????????? #????????????????? | | ?# #????????????????? #????????????????? | | ?# #????????????????? #????????????????? | | ?######## #????????????????? +????????????????? | | ?######## #?????????????#?? #????????????????? | | ?# # #???????????? #?? #????????????????? | | ?# !! + ###+#########+### #????????????????? | | ?# !! # [#????????????????? | | ?# !! # ###??????????????? | | ?######## ""#??????????????? | | ????????# ####"#"#### @ T"#??????????????? | | ????????# #" ;;;;; a""#??????????????? | | ????????# ; # """ ###### ????????? | | ????????+ ; u #Y """ ????????? | | ????????# ; [/m """ ???????? | | ????????# ; %#r | ???????? | | ????????# ; %;= ###??????????? | | ????????# " ;;#####T### #????????????? | | ?######?# "" ######????##??? #????????????? | | ?# #?# " ?????????????#????????????? | | ?? #?# ### ??????????????????????????? | | ?? #?# #?#### ??????????????????????????? | | ??? ??# #????# ??????????????????????????? | | ##? ?## ##???# """ ??????????????????????????? | | ###+### #???# """???????????????????????????? | | #???# """???????????????????????????? | | T #???#??? ???????????????????????????? | | #???????????????????????????????????? | | ###+### #???????????????????????????????????? | | ##?????#######???????????????????????????????????? | | ?????????????????????????????????????????????????? | | ?????????????????????????????????????????????????? | | ?????????????????????????????????????????????????? | | ?????????????????????????????????????????????????? | | ?????????????????????????????????????????????????? | +----------------------------------------------------+ Best States ------------- Heat Dissipation 28 Energy Generation 10 Energy Capacity 125 Matter Stores 300 Matter Capacity 300 Sight Range 18 Terrain Scan Density 10 Propulsion Shielding 33 Evasion (%) 53 Recoil Reduction 2 Item Schematics ----------------- None Robot Schematics ------------------ None Fabricated ------------ Nothing Repaired ---------- Nothing Alien Tech Used ----------------- None Achievements -------------- GoHome() Use The Force Challenges ------------ None Game ------ Seed TacticalSpreadFemtoactuators Manual? 0 Play Time 00:11:40 Cumulative 0.9 hours Start 2025.05.29 @ 03:11:33 End 2025.05.29 @ 03:20:26 Sessions 1 Manual Loads 0 Difficulty Rogue Special Mode None Game No. 4 Rogue 3 Adventurer 1 Explorer 0 Win Type - Total 0 Types 0/0/0/0/0/0/0/0/0/0 Lore% 0 Gallery% 3 Achievement% 5 Wizard Run 0 Options --------- Layout 0 ASCII 0 Keyboard 0 Movement Mouse Keybinds 0 Fullscreen 1 Font 18/SmallcapsGlow Map View 76x50 Zoom Use 0% Tactical HUD 0 Map Filters NONE Filters NONE Steam 1 RUN: 614e479d-7ef3-4e3b-9f21-94d5733e9713